fUSD/lending_fUSD_20260305
["ID","MTS","AMOUNT","RATE_DAILY","PERIOD"]
[407747586,1772741437865,-3999.99999999,0.00016811,2]
[407747587,1772741437891,-435.68171857,0.00016811,2]
[407747588,1772741437904,-6617.74264791,0.00016811,2]
[407747589,1772741437916,-607.67994878,0.00016811,2]
[407747590,1772741437927,-1306.51875615,0.00016811,2]
[407747591,1772741437940,-1815.92665887,0.00016811,2]
[407747592,1772741437951,-10043.57037895,0.00016811,2]
[407747593,1772741437962,-334.615,0.00016811,2]
[407747594,1772741438011,-713.71647197,0.00016811,2]
[407747595,1772741438022,-542.10786638,0.00016811,2]
[407747596,1772741438034,-20310.0,0.00016811,2]
[407747597,1772741438135,-1389.5563097,0.00016811,2]
[407747614,1772741440212,-93415.97586373,0.00016811,2]
[407747615,1772741440226,-551473.68396704,0.00016811,2]
[407747616,1772741440236,-221.0,0.00016811,2]
[407747617,1772741440250,-4508.86082378,0.000169,2]
[407747618,1772741440260,-151457.17995148,0.00017,2]
[407747619,1772741440269,-333.07321791,0.00017,9]
[407747620,1772741440278,-7602.44120292,0.0001701,2]
[407747621,1772741440287,-20893.31,0.00017011,2]
[407747622,1772741440296,-408.8,0.0001706,2]
[407747623,1772741440305,-30362.98771021,0.00017065,2]
[407747624,1772741440315,-45569.49115023,0.0001711,2]
[407747625,1772741440324,-323.73170834,0.00017183,2]
[407747626,1772741440334,-500.0,0.00017308,2]
[407747627,1772741440343,-500.0,0.00017308,2]
[407747628,1772741440352,-500.0,0.00017308,2]
[407747629,1772741440362,-500.0,0.00017308,2]
[407747630,1772741440371,-500.0,0.00017308,2]
[407747631,1772741440382,-500.0,0.00017308,2]
[407747632,1772741440391,-500.0,0.00017308,2]
[407747633,1772741440400,-500.0,0.00017308,2]
[407747634,1772741440411,-500.0,0.00017308,2]
[407747635,1772741440420,-1000.0,0.00017309,2]
[407747636,1772741440429,-32906.2197,0.00017309,2]
[407747637,1772741440439,-5000.0,0.00017309,2]
[407747638,1772741440448,-215.36212273,0.0001732,2]
[407747639,1772741440457,-2005.75,0.00017321,2]
[407747640,1772741440466,-408.8,0.0001733,2]
[407747641,1772741440476,-4071.98470714,0.00017375,2]
[407747643,1772741440486,-496.46,0.00017397,2]
[407747645,1772741440495,-200.0,0.00017399,2]
[407747647,1772741440504,-200.0,0.00017406,2]
[407747648,1772741440514,-151.0,0.00017406,2]
[407747649,1772741440523,-151.0,0.00017406,2]
[407747650,1772741440532,-151.0,0.00017406,2]
[407747651,1772741440542,-7850.13344053,0.00017407,2]
[407747652,1772741440551,-1008.35756594,0.00017408,5]
[407747653,1772741440561,-1008.35756595,0.00017408,5]
[407747654,1772741440570,-201.27075793,0.00017408,5]
[407747655,1772741440580,-157.98167665,0.00017408,2]
[407747656,1772741440589,-500.0,0.00017408,2]
[407747657,1772741440599,-612.51415642,0.00017408,2]
[407747658,1772741440609,-169.80406609,0.00017408,2]
[407747659,1772741440618,-500.0,0.00017409,2]
[407747660,1772741440627,-500.0,0.00017409,2]
[407747661,1772741440636,-500.0,0.00017409,2]
[407747662,1772741440646,-500.0,0.00017409,2]
[407747663,1772741440656,-500.0,0.00017409,2]
[407747664,1772741440665,-500.0,0.00017409,2]
[407747665,1772741440675,-500.0,0.00017409,2]
[407747666,1772741440684,-500.0,0.00017409,2]
[407747667,1772741440694,-500.0,0.00017409,2]
[407747668,1772741440703,-500.0,0.00017409,2]
[407747669,1772741440712,-573.2,0.00017409,2]
[407747670,1772741440722,-500.0,0.00017409,2]
[407747671,1772741440731,-500.0,0.00017409,2]
[407747672,1772741440740,-500.0,0.00017409,2]
[407747673,1772741440750,-500.0,0.00017409,2]
[407747674,1772741440759,-500.0,0.00017409,2]
[407747675,1772741440769,-500.0,0.00017409,2]
[407747676,1772741440779,-500.0,0.00017409,2]
[407747677,1772741440789,-500.0,0.00017409,2]
[407747678,1772741440798,-500.0,0.00017409,2]
[407747679,1772741440808,-500.0,0.00017409,2]
[407747680,1772741440818,-255.96292911,0.00017409,2]
[407747681,1772741440827,-568.38,0.00017409,2]
[407747682,1772741440836,-500.0,0.00017409,2]
[407747683,1772741440845,-500.0,0.00017409,2]
[407747684,1772741440858,-500.0,0.00017409,2]
[407747685,1772741440867,-500.0,0.00017409,2]
[407747686,1772741440876,-30362.98771021,0.0001742,2]
[407747687,1772741440885,-7602.44120287,0.00017423,2]
[407747688,1772741440895,-1014.2684596,0.00017475,2]
[407747689,1772741440905,-4508.86082374,0.000175,2]
[407747690,1772741440914,-408.8,0.000176,2]
[407747691,1772741440923,-4071.98470711,0.00017656,2]
[407747692,1772741440935,-500.0,0.00017683,2]
[407747693,1772741440944,-500.0,0.00017738,2]
[407747694,1772741440954,-800.0,0.00017808,2]
[407747695,1772741440963,-7602.44120287,0.00017836,2]
[407747696,1772741440973,-408.8,0.0001787,2]
[407747697,1772741440982,-1014.26845957,0.00017879,2]
[407747698,1772741440991,-4071.98470711,0.00017936,2]
[407747699,1772741441001,-200.0,0.00017947,2]
[407747700,1772741441010,-500.0,0.00017957,2]
[407747701,1772741441020,-3898.63046606,0.00018,2]
[407747702,1772741441029,-1196.82951219,0.00018,2]
[407747703,1772741441039,-250.0,0.00018099,2]
[407747704,1772741441049,-1786.2328339,0.000181,2]
[407747705,1772741441058,-4508.86082374,0.000181,2]
[407747706,1772741441067,-408.8,0.0001814,2]
[407747707,1772741441077,-2005.75,0.00018146,2]
[407747708,1772741441086,-250.0,0.00018146,2]
[407747709,1772741441095,-3104.2347021,0.0001821,2]
[407747710,1772741441104,-1000.0,0.00018211,2]
[407747711,1772741441114,-4071.98470711,0.00018217,2]
[407747712,1772741441123,-7602.44120287,0.00018249,2]
[407747713,1772741441132,-216.00175257,0.00018271,2]
[407747714,1772741441141,-1014.26845957,0.00018283,2]
[407747715,1772741441151,-180.56,0.00018291,2]
[407747716,1772741441160,-656.50643882,0.0001835,2]
[407747717,1772741441170,-150.0,0.00018371,2]
[407747718,1772741441180,-408.8,0.0001841,2]
[407747719,1772741441189,-1680.0,0.00018455,2]
[407747720,1772741441198,-300.0,0.0001848,2]
[407747721,1772741441207,-1794.36570718,0.0001848,2]
[407747722,1772741441217,-200.0,0.00018495,2]
[407747723,1772741441226,-4071.98470711,0.00018497,2]
[407747724,1772741441236,-500.00000001,0.000185,2]
[407747725,1772741441246,-3125.0,0.00018508,2]
[407747726,1772741441255,-500.0,0.0001851,2]
[407747727,1772741441265,-2303.78720866,0.0001852,2]
[407747728,1772741441274,-3551.58793857,0.00018561,2]
[407747729,1772741441284,-20488.33629454,0.0001862,2]
[407747730,1772741441293,-7602.44120287,0.00018661,2]
[407747731,1772741441303,-408.8,0.0001868,2]
[407747732,1772741441313,-1014.26845957,0.00018688,2]
[407747733,1772741441325,-150.0,0.00018699,2]
[407747734,1772741441336,-4592.8277,0.000187,2]
[407747735,1772741441346,-4508.86082374,0.000187,2]
[407747736,1772741441355,-250.0,0.000187,2]
[407747737,1772741441365,-5000.0,0.000187,2]
[407747738,1772741441375,-150.0,0.00018733,2]
[407747739,1772741441385,-151.0,0.00018739,2]
[407747740,1772741441395,-1000.0,0.00018739,2]
[407747741,1772741441407,-250.0,0.00018739,2]
[407747742,1772741441416,-721.12765535,0.00018739,2]
[407747743,1772741441428,-209.40437684,0.00018739,2]
[407747744,1772741441438,-1428.38747117,0.00018739,2]
[407747745,1772741441448,-250.0,0.00018739,2]
[407747746,1772741441458,-250.0,0.00018739,2]
[407747747,1772741441467,-250.0,0.00018739,2]
[407747748,1772741441478,-250.0,0.00018739,2]
[407747749,1772741441488,-250.0,0.00018739,2]
[407747750,1772741441497,-250.0,0.00018739,2]
[407747751,1772741441507,-250.0,0.00018739,2]
[407747752,1772741441516,-250.0,0.00018739,2]
[407747753,1772741441526,-250.0,0.00018739,2]
[407747754,1772741441535,-250.0,0.00018739,2]
[407747755,1772741441544,-250.0,0.00018739,2]
[407747756,1772741441554,-250.0,0.00018739,2]
[407747757,1772741441563,-250.0,0.00018739,2]
[407747758,1772741441573,-500.0,0.00018739,2]
[407747759,1772741441582,-250.0,0.00018739,2]
[407747760,1772741441592,-250.0,0.00018739,2]
[407747761,1772741441601,-500.0,0.00018739,2]
[407747762,1772741441611,-250.0,0.00018739,2]
[407747763,1772741441620,-500.0,0.00018739,2]
[407747764,1772741441629,-245.69751528,0.00018739,2]
[407747765,1772741441638,-500.0,0.00018739,2]
[407747766,1772741441647,-500.0,0.00018739,2]
[407747767,1772741441656,-500.0,0.00018739,2]
[407747768,1772741441665,-500.0,0.00018739,2]
[407747769,1772741441675,-1000.0,0.00018739,2]
[407747770,1772741441684,-250.0,0.00018739,2]
[407747771,1772741441693,-250.0,0.00018739,2]
[407747772,1772741441702,-1000.0,0.00018739,2]
[407747773,1772741441711,-500.0,0.00018739,2]
[407747774,1772741441721,-500.0,0.00018739,2]
[407747775,1772741441731,-1000.0,0.00018739,2]
[407747776,1772741441739,-500.0,0.00018739,2]
[407747777,1772741441749,-1000.0,0.00018739,2]
[407747778,1772741441758,-500.0,0.00018739,2]
[407747779,1772741441767,-262.90206542,0.00018739,2]
[407747780,1772741441776,-1000.0,0.00018739,2]
[407747781,1772741441785,-300.0,0.00018739,2]
[407747782,1772741441794,-1000.0,0.00018739,2]
[407747783,1772741441803,-300.0,0.00018739,2]
[407747784,1772741441812,-1000.0,0.00018739,2]
[407747785,1772741441821,-300.0,0.00018739,2]
[407747786,1772741441832,-693.3919763,0.00018739,2]
[407747787,1772741441841,-1000.0,0.00018739,2]
[407747788,1772741441851,-300.0,0.00018739,2]
[407747789,1772741441862,-578.20924308,0.00018739,2]
[407747790,1772741441871,-300.0,0.00018739,2]
[407747791,1772741441880,-970.91497975,0.00018739,2]
[407747792,1772741441889,-300.0,0.00018739,2]
[407747793,1772741441898,-300.0,0.00018739,2]
[407747794,1772741441908,-300.0,0.00018739,2]
[407747795,1772741441917,-151.0,0.00018739,2]
[407747796,1772741441926,-300.0,0.00018739,2]
[407747797,1772741441937,-151.0,0.00018739,2]
[407747798,1772741441946,-231.42295046,0.00018739,2]
[407747799,1772741441955,-151.0,0.00018739,2]
[407747800,1772741441964,-151.0,0.00018739,2]
[407747801,1772741441975,-151.0,0.00018739,2]
[407747802,1772741441984,-151.0,0.00018739,2]
[407747803,1772741441993,-151.0,0.00018739,2]
[407747804,1772741442002,-151.0,0.00018739,2]
[407747805,1772741442012,-174.61919141,0.00018739,2]
[407747806,1772741442022,-151.0,0.00018739,2]
[407747807,1772741442031,-151.0,0.00018739,2]
[407747808,1772741442042,-151.0,0.00018739,2]
[407747809,1772741442051,-151.0,0.00018739,2]
[407747810,1772741442061,-250.0,0.00018739,2]
[407747811,1772741442072,-250.0,0.00018739,2]
[407747812,1772741442081,-250.0,0.00018739,2]
[407747813,1772741442090,-250.0,0.00018739,2]
[407747814,1772741442099,-250.0,0.00018739,2]
[407747815,1772741442109,-250.0,0.00018739,2]
[407747816,1772741442119,-500.0,0.00018739,2]
[407747817,1772741442129,-250.0,0.00018739,2]
[407747818,1772741442138,-500.0,0.00018739,2]
[407747819,1772741442147,-500.0,0.00018739,2]
[407747820,1772741442158,-167.06940161,0.00018739,2]
[407747821,1772741442167,-743.50770149,0.00018739,2]
[407747822,1772741442176,-209.40437685,0.00018739,2]
[407747823,1772741442185,-500.0,0.00018739,2]
[407747824,1772741442195,-500.0,0.00018739,2]
[407747825,1772741442204,-500.0,0.00018739,2]
[407747826,1772741442214,-500.0,0.00018739,2]
[407747827,1772741442225,-500.0,0.00018739,2]
[407747828,1772741442234,-500.0,0.00018739,2]
[407747829,1772741442243,-500.0,0.00018739,2]
[407747830,1772741442254,-500.0,0.00018739,2]
[407747831,1772741442264,-500.0,0.00018739,2]
[407747832,1772741442274,-500.0,0.00018739,2]
[407747833,1772741442285,-294.78480333,0.00018739,2]
[407747834,1772741442295,-745.65223616,0.00018739,2]
[407747835,1772741442304,-269.917619,0.00018739,2]
[407747836,1772741442318,-4071.98470711,0.00018778,2]
[407747837,1772741442332,-234.63590618,0.00018787,2]
[407747838,1772741442346,-151.0,0.00018794,2]
[407747839,1772741442358,-151.0,0.00018794,2]
[407747840,1772741442369,-719.04747942,0.00018794,2]
[407747841,1772741442383,-151.0,0.00018794,2]
[407747842,1772741442395,-500.0,0.00018796,2]
[407747843,1772741442409,-500.0,0.00018796,2]
[407747844,1772741442422,-500.0,0.00018796,2]
[407747845,1772741442435,-300.0,0.00018796,2]
[407747846,1772741442447,-171439.8667193,0.00018797,2]
[407747847,1772741442457,-2796.520709,0.00018797,2]
[407747848,1772741442471,-3513.0233319,0.00018797,2]
[407747849,1772741442483,-282153.3348464,0.00018797,2]
[407747850,1772741442496,-149361.41859814,0.00018797,2]
[407747851,1772741442521,-380.30947352,0.00018797,2]
[407747852,1772741442536,-3565.18647994,0.00018797,2]
[407747853,1772741442551,-32105.5,0.00018797,2]
[407747858,1772741442896,-1062.34374872,0.00018797,2]
[407747859,1772741443023,-110.30535407,0.00018797,2]
[407747864,1772741443262,-45742.05322381,0.00018797,2]
[407747865,1772741443274,-2897.9998063,0.00018797,2]
[407747866,1772741443286,-1043.4845886,0.00018797,2]
[407747867,1772741443299,-60828.48988992,0.00018797,2]
[407747868,1772741444270,-6354.83566743,0.00018797,2]
[407747869,1772741444290,-290.0,0.00018797,2]
[407747870,1772741445879,-463.35377226,0.00017774,2]
[407747871,1772741445898,-401.64377145,0.00017774,2]
[407747872,1772741445945,-9808.16646871,0.00017774,2]
[407747877,1772741540026,500.0,0.00012,2]
[407747878,1772741540517,518.27345943,0.00011291,2]
[407747879,1772741557211,2233.92,0.00015409,2]
[407747880,1772741562989,253.36485323,0.00013699,2]
[407747881,1772741633962,200.0,0.00016291,2]
[407747882,1772741865440,253.36485323,0.00016291,2]
[407747883,1772741878943,221.58,0.00015,7]
[407747885,1772742127374,219.85649848,0.000162,2]
[407747886,1772742237546,1500.0,0.00016241,2]
[407747894,1772742446111,-3240.0,0.0001637,2]
[407747895,1772742446132,-261.83086494,0.00016461,2]
[407747896,1772742446156,-1200.0,0.00016561,2]
[407747897,1772742446177,-1400.51016048,0.00016562,2]
[407747898,1772742537747,3300.0,0.00016262,2]
[407747899,1772742572088,-759.0290512,0.00016344,2]
[407747900,1772742574096,-2264.5309488,0.00016344,2]
[407747901,1772742574121,-1300.81283952,0.00016562,2]
[407747902,1772742574142,-154.636,0.00016562,2]
[407747903,1772742574164,-261.83086492,0.00016631,2]
[407747904,1772742574185,-348.31,0.0001679,2]
[407747905,1772742574209,-300.0,0.00016799,2]
[407747906,1772742574231,-261.83086492,0.000168,2]
[407747907,1772742574250,-6405.68348518,0.000168,2]
[407747908,1772742574272,-4785.26956996,0.000168,2]
[407747909,1772742574291,-20186.77499595,0.000168,2]
[407747910,1772742574311,-300.0,0.000168,6]
[407747911,1772742574330,-342.2632,0.000168,2]
[407747912,1772742574349,-2500.0,0.000168,2]
[407747913,1772742574368,-5000.0,0.000168,2]
[407747914,1772742574387,-666.2477652,0.000168,2]
[407747915,1772742574413,-151.0,0.0001689,2]
[407747916,1772742574433,-151.0,0.0001689,2]
[407747917,1772742574454,-151.0,0.0001689,2]
[407747918,1772742574475,-151.0,0.0001689,2]
[407747919,1772742574495,-151.0,0.0001689,2]
[407747920,1772742574516,-151.0,0.0001689,2]
[407747921,1772742574537,-151.0,0.0001689,2]
[407747922,1772742574557,-200.0,0.0001689,2]
[407747923,1772742574578,-151.0,0.0001689,2]
[407747924,1772742574600,-151.0,0.0001689,2]
[407747925,1772742574621,-151.0,0.0001689,2]
[407747926,1772742574642,-151.0,0.0001689,2]
[407747927,1772742574662,-234.6359062,0.0001689,2]
[407747928,1772742574682,-151.0,0.00016897,2]
[407747929,1772742574703,-162.3071556,0.00016897,2]
[407747930,1772742574723,-1062.34374872,0.00016899,5]
[407747931,1772742574743,-500.0,0.00016899,2]
[407747932,1772742574764,-278.75990949,0.00016899,2]
[407747933,1772742574787,-500.0,0.00016899,2]
[407747934,1772742574808,-500.0,0.00016899,2]
[407747935,1772742574829,-500.0,0.00016899,2]
[407747936,1772742574854,-500.0,0.00016899,2]
[407747937,1772742574880,-500.0,0.00016899,2]
[407747938,1772742574905,-500.0,0.00016899,2]
[407747939,1772742574928,-500.0,0.00016899,2]
[407747940,1772742574952,-500.0,0.00016899,2]
[407747941,1772742574975,-500.0,0.00016899,2]
[407747942,1772742574998,-500.0,0.00016899,2]
[407747943,1772742575024,-500.0,0.00016899,2]
[407747944,1772742575047,-500.0,0.00016899,2]
[407747945,1772742575072,-500.0,0.00016899,2]
[407747946,1772742575096,-619.82326052,0.00016899,2]
[407747947,1772742575125,-500.0,0.00016899,2]
[407747948,1772742575149,-500.0,0.00016899,2]
[407747949,1772742575174,-500.0,0.00016899,2]
[407747950,1772742575200,-500.0,0.00016899,2]
[407747951,1772742575225,-500.0,0.00016899,2]
[407747952,1772742575250,-500.0,0.00016899,2]
[407747953,1772742575275,-500.0,0.00016899,2]
[407747954,1772742575295,-217.70707085,0.00016899,2]
[407747955,1772742575319,-500.0,0.00016899,2]
[407747956,1772742575340,-700.0,0.000169,6]
[407747957,1772742575359,-15334.9985,0.000169,2]
[407747958,1772742575382,-179164.89571417,0.000169,2]
[407747963,1772742632238,-200.0,0.00016463,2]
[407747964,1772742632252,-497.8179685,0.000167,2]
[407747965,1772742632270,-2846.56,0.000167,2]
[407747966,1772742632288,-1500.0,0.000167,2]
[407747967,1772742632303,-81289.0779315,0.000167,2]
[407747968,1772742632316,-218.83547962,0.000168,2]
[407747969,1772742632346,-1200.0,0.00016899,2]
[407747970,1772742632379,-1000.0,0.000169,2]
[407747971,1772742632393,-542.58,0.00016903,2]
[407747972,1772742632408,-500.0,0.00016991,2]
[407747973,1772742632423,-348.31,0.0001706,2]
[407747974,1772742632437,-150.0,0.000171,2]
[407747975,1772742632453,-6405.68348518,0.00017144,2]
[407747976,1772742632467,-20186.7749959,0.00017144,2]
[407747977,1772742632481,-166.66,0.00017239,2]
[407747978,1772742632496,-666.24776515,0.00017317,2]
[407747979,1772742632509,-348.31,0.0001733,2]
[407747980,1772742632523,-29720.1413645,0.00017352,2]
[407747981,1772742632555,-7124.2,0.00017352,2]
[407747982,1772742632572,-887.77170059,0.00017352,2]
[407747985,1772742632598,-1283.15854558,0.00017352,2]
[407748011,1772742638088,-392.12096128,0.00017352,2]
[407748012,1772742638103,-2081.5790444,0.00017352,2]
[407748016,1772742639340,-374.15950572,0.00017352,2]
[407748022,1772742640347,-1672.25163144,0.00017352,2]
[407748023,1772742640359,-40917.88724649,0.00017352,2]
[407748024,1772742640369,-500.0,0.00017409,2]
[407748025,1772742640378,-500.0,0.00017409,2]
[407748026,1772742640387,-500.0,0.00017409,2]
[407748027,1772742640396,-500.0,0.00017409,2]
[407748028,1772742640406,-198.64,0.00017409,2]
[407748029,1772742640416,-500.0,0.00017409,2]
[407748030,1772742640429,-500.0,0.00017409,2]
[407748031,1772742640438,-500.0,0.00017409,2]
[407748032,1772742640448,-459.63,0.00017409,2]
[407748033,1772742640457,-200.0,0.00017438,2]
[407748034,1772742640467,-6405.68348518,0.00017489,2]
[407748035,1772742640477,-17518.15926833,0.00017489,2]
[407748036,1772742640588,-348.985703,0.000168,2]
[407748037,1772742640610,-651.014297,0.000168,2]
[407748038,1772742640619,-2668.61572757,0.00017489,2]
[407748039,1772742640628,-348.31,0.000176,2]
[407748040,1772742640637,-373.79,0.00017677,2]
[407748041,1772742640647,-150.0,0.00017755,7]
[407748042,1772742640656,-450.942152,0.00017755,7]
[407748043,1772742640666,-751.884305,0.00017755,7]
[407748044,1772742640675,-1052.826458,0.00017755,7]
[407748045,1772742640684,-1353.76861,0.00017755,7]
[407748046,1772742640694,-198.84845043,0.00017755,7]
[407748047,1772742640708,-1455.86231257,0.00017755,7]
[407748048,1772742640717,-1955.652916,0.00017755,7]
[407748049,1772742640727,-2256.595068,0.00017755,7]
[407748050,1772742640736,-2557.537221,0.00017755,7]
[407748051,1772742640746,-2858.479374,0.00017755,7]
[407748052,1772742640756,-172.70211477,0.00017755,7]
[407748053,1772742640765,-800.0,0.00017808,2]
[407748054,1772742640775,-166.66,0.00017808,2]
[407748055,1772742640784,-6405.68348518,0.00017833,2]
[407748056,1772742640794,-15839.2051924,0.00017833,2]
[407748057,1772742640825,-4347.5698035,0.00017833,2]
[407748058,1772742640835,-666.24776515,0.00017833,2]
[407748059,1772742640844,-348.31,0.0001787,2]
[407748060,1772742640854,-1522.01243135,0.00017897,2]
[407748061,1772742640865,-2687.58630183,0.00017897,2]
[407748084,1772742643263,-400.2,0.00017897,2]
[407748085,1772742643275,-584.38465275,0.00017897,2]
[407748086,1772742643321,-266.62032279,0.00017897,2]
[407748087,1772742643332,-3317.33268578,0.00017897,2]
[407748088,1772742643341,-1000.0,0.000179,6]
[407748089,1772742643351,-500.0,0.000179,6]
[407748090,1772742643360,-250.0,0.00017978,2]
[407748091,1772742643369,-342.82895016,0.00017986,2]
[407748092,1772742643378,-160.0,0.00018019,7]
[407748093,1772742643387,-348.31,0.0001814,2]
[407748094,1772742643397,-6405.68348518,0.00018178,2]
[407748095,1772742643406,-20186.7749959,0.00018178,2]
[407748096,1772742643415,-150.0,0.00018198,2]
[407748097,1772742643424,-275.137368,0.000182,2]
[407748098,1772742643433,-225.18697533,0.00018302,2]
[407748100,1772742643443,-1000.0,0.00018302,2]
[407748102,1772742643452,-721.12765535,0.00018302,2]
[407748104,1772742643462,-250.0,0.00018302,2]
[407748105,1772742643471,-250.0,0.00018302,2]
[407748106,1772742643481,-250.0,0.00018302,2]
[407748107,1772742643490,-500.0,0.00018302,2]
[407748108,1772742643499,-500.0,0.00018302,2]
[407748109,1772742643508,-500.0,0.00018302,2]
[407748110,1772742643518,-500.0,0.00018302,2]
[407748111,1772742643527,-500.0,0.00018302,2]
[407748112,1772742643536,-500.0,0.00018302,2]
[407748113,1772742643546,-500.0,0.00018302,2]
[407748114,1772742643555,-500.0,0.00018302,2]
[407748115,1772742643565,-578.20924308,0.00018302,2]
[407748116,1772742643574,-500.0,0.00018302,2]
[407748117,1772742643583,-693.3919763,0.00018302,2]
[407748118,1772742643593,-500.0,0.00018302,2]
[407748120,1772742643602,-500.0,0.00018302,2]
[407748122,1772742643611,-151.0,0.00018302,2]
[407748123,1772742643621,-174.61919141,0.00018302,2]
[407748124,1772742643631,-262.90206542,0.00018302,2]
[407748125,1772742643642,-151.0,0.00018302,2]
[407748126,1772742643653,-151.0,0.00018302,2]
[407748127,1772742643662,-151.0,0.00018302,2]
[407748128,1772742643672,-500.0,0.00018302,2]
[407748129,1772742643681,-151.0,0.00018302,2]
[407748130,1772742643691,-151.0,0.00018302,2]
[407748131,1772742643700,-151.0,0.00018302,2]
[407748132,1772742643710,-151.0,0.00018302,2]
[407748134,1772742643720,-151.0,0.00018302,2]
[407748135,1772742643729,-151.0,0.00018302,2]
[407748137,1772742643738,-743.50770149,0.00018302,2]
[407748139,1772742643747,-666.24776515,0.0001835,2]
[407748140,1772742643756,-218.8354796,0.0001835,2]
[407748141,1772742643766,-70111.63,0.00018356,2]
[407748142,1772742643776,-719.04747942,0.00018357,2]
[407748143,1772742643785,-151.0,0.00018357,2]
[407748144,1772742643795,-166.66,0.00018378,2]
[407748146,1772742643804,-348.31,0.0001841,2]
[407748148,1772742643813,-745.65223616,0.00018412,2]
[407748149,1772742643823,-280.65940737,0.00018412,2]
[407748150,1772742643833,-773.2413689,0.00018467,2]
[407748151,1772742643843,-600.0,0.0001848,2]
[407748152,1772742643852,-500.0,0.0001848,2]
[407748153,1772742643861,-801.85129955,0.00018522,2]
[407748154,1772742643870,-6405.68348518,0.00018522,2]
[407748155,1772742643879,-1225.64575224,0.00018522,2]
[407748156,1772742643892,-261.98000005,0.00018522,2]
[407748157,1772742643904,-9789.46025393,0.00018522,2]
[407748158,1772742643915,-1000.0,0.00018522,2]
[407748159,1772742643934,-644.13066511,0.00018522,2]
[407748160,1772742646020,-7265.55832457,0.00018522,2]
[407748161,1772742646030,-1680.0,0.00018551,2]
[407748162,1772742646039,-831.51979763,0.00018577,2]
[407748163,1772742646050,-862.28603014,0.00018632,2]
[407748164,1772742646060,-348.31,0.0001868,2]
[407748165,1772742646069,-3757.3840198,0.00018682,2]
[407748166,1772742646079,-894.19061326,0.00018687,2]
[407748167,1772742646089,-927.27566595,0.00018742,2]
[407748168,1772742646099,-37465.65681302,0.00018765,2]
[407748169,1772742646110,-2874.92898747,0.00018765,2]
[407748170,1772742646122,-2156.84799951,0.00018765,2]
[407748171,1772742646134,-1636.79345177,0.00018765,2]
[407748172,1772742646254,-10863.3157427,0.00018765,2]
[407748179,1772742940223,-194.11138098,0.000167,2]
[407748184,1772743747108,-136.77861902,0.000167,2]
[407748185,1772743747129,-166.90784037,0.00016701,2]
[407748186,1772743747151,-166.1,0.00016712,2]
[407748187,1772743747172,-150.0,0.00016733,2]
[407748188,1772743747196,-1549.1872,0.000168,2]
[407748189,1772743747218,-166.66,0.00016801,2]
[407748190,1772743747239,-1200.0,0.00016898,2]
[407748191,1772743747260,-500.0,0.00016899,2]
[407748192,1772743747280,-500.0,0.00016899,2]
[407748193,1772743747300,-500.0,0.00016899,2]
[407748194,1772743747321,-500.0,0.00016899,2]
[407748195,1772743747343,-500.0,0.00016899,2]
[407748196,1772743747365,-334.36634061,0.00016899,2]
[407748197,1772743754109,-165.63365939,0.00016899,2]
[407748198,1772743754131,-166.66,0.00017155,2]
[407748199,1772743754152,-1000.0,0.00017222,2]
[407748200,1772743754173,-4000.0,0.00017268,2]
[407748201,1772743754194,-150.0,0.0001734,2]
[407748202,1772743754219,-500.0,0.00017352,2]
[407748203,1772743754241,-2000.0,0.0001737,2]
[407748204,1772743754263,-166.66,0.00017509,2]
[407748205,1772743754285,-328.64,0.00017548,2]